Workbook

Sheet OMKOSTNINGSDATA OG DIAGRAM
B1: OMKOSTNINGSANALYSE – PARETO
B2: Pareto-diagram for akkumuleret procent af årlige omkostninger på tværs af alle omkostningssteder er i cellerne B2 til E3.
B4: OMKOSTNINGSANALYSE
B5: Omkostningssted | C5: Årlige omkostninger | D5: Procent af total | E5: Akkumuleret procent
B6: Dele og materialer | C6: kr. 1,325,000.00 | D6: =IFERROR(Data[[#This Row],[Årlige omkostninger ]]/SUM(Data[[Årlige omkostninger ]]), "") -> 31.17% | E6: =IFERROR(SUM(INDEX(Data[Procent af total],1):Data[[#This Row],[Procent af total]]), "") -> 31.17%
B7: Produktionsudstyr | C7: kr. 900,500.00 | D7: =IFERROR(Data[[#This Row],[Årlige omkostninger ]]/SUM(Data[[Årlige omkostninger ]]), "") -> 21.19% | E7: =IFERROR(SUM(INDEX(Data[Procent af total],1):Data[[#This Row],[Procent af total]]), "") -> 52.36%
B8: Lønninger | C8: kr. 575,000.00 | D8: =IFERROR(Data[[#This Row],[Årlige omkostninger ]]/SUM(Data[[Årlige omkostninger ]]), "") -> 13.53% | E8: =IFERROR(SUM(INDEX(Data[Procent af total],1):Data[[#This Row],[Procent af total]]), "") -> 65.89%
B9: Vedligeholdelse | C9: kr. 395,000.00 | D9: =IFERROR(Data[[#This Row],[Årlige omkostninger ]]/SUM(Data[[Årlige omkostninger ]]), "") -> 9.29% | E9: =IFERROR(SUM(INDEX(Data[Procent af total],1):Data[[#This Row],[Procent af total]]), "") -> 75.18%
B10: Leje af kontor | C10: kr. 295,000.00 | D10: =IFERROR(Data[[#This Row],[Årlige omkostninger ]]/SUM(Data[[Årlige omkostninger ]]), "") -> 6.94% | E10: =IFERROR(SUM(INDEX(Data[Procent af total],1):Data[[#This Row],[Procent af total]]), "") -> 82.12%
B11: Leje af lagerbygning | C11: kr. 250,000.00 | D11: =IFERROR(Data[[#This Row],[Årlige omkostninger ]]/SUM(Data[[Årlige omkostninger ]]), "") -> 5.88% | E11: =IFERROR(SUM(INDEX(Data[Procent af total],1):Data[[#This Row],[Procent af total]]), "") -> 88.00%
B12: Forsikring | C12: kr. 180,000.00 | D12: =IFERROR(Data[[#This Row],[Årlige omkostninger ]]/SUM(Data[[Årlige omkostninger ]]), "") -> 4.23% | E12: =IFERROR(SUM(INDEX(Data[Procent af total],1):Data[[#This Row],[Procent af total]]), "") -> 92.24%
B13: Fordele og pensioner | C13: kr. 130,000.00 | D13: =IFERROR(Data[[#This Row],[Årlige omkostninger ]]/SUM(Data[[Årlige omkostninger ]]), "") -> 3.06% | E13: =IFERROR(SUM(INDEX(Data[Procent af total],1):Data[[#This Row],[Procent af total]]), "") -> 95.29%
B14: Køretøjer | C14: kr. 125,000.00 | D14: =IFERROR(Data[[#This Row],[Årlige omkostninger ]]/SUM(Data[[Årlige omkostninger ]]), "") -> 2.94% | E14: =IFERROR(SUM(INDEX(Data[Procent af total],1):Data[[#This Row],[Procent af total]]), "") -> 98.24%
B15: Forskning | C15: kr. 75,000.00 | D15: =IFERROR(Data[[#This Row],[Årlige omkostninger ]]/SUM(Data[[Årlige omkostninger ]]), "") -> 1.76% | E15: =IFERROR(SUM(INDEX(Data[Procent af total],1):Data[[#This Row],[Procent af total]]), "") -> 100.00%
B16: Total | C16: =SUBTOTAL(109,Data[[Årlige omkostninger ]]) -> kr. 4,250,500.00 | D16: =SUBTOTAL(109,Data[Procent af total]) -> 100.00%
